[Event "*** Titled Tuesday Blitz"]
[Site "Chess.com"]
[Date "2019.06.04"]
[Round "10"]
[White "Joseph_Truelson"]
[Black "tan275"]
[Result "1-0"]
[WhiteElo "2287"]
[BlackElo "2195"]
[TimeControl "180+2"]
[EndTime "15:21:52 PDT"]
[Termination "Joseph_Truelson won by resignation"]

1. d4 {[%clk 0:03:01.9]} 1... Nf6 {[%clk 0:02:59.5]} 2. Nc3 {[%clk 0:03:03.2]}
2... g6 {[%clk 0:02:58.7]} 3. e4 {[%clk 0:03:04.2]} 3... d6 {[%clk 0:02:58.6]}
4. Bf4 {[%clk 0:03:04.3]} 4... Bg7 {[%clk 0:02:59]} 5. Qd2 {[%clk 0:03:03.3]}
5... Nc6 {[%clk 0:02:49.6]} 6. d5 {[%clk 0:02:49.3]} 6... Ne5 {[%clk 0:02:48.1]}
7. O-O-O {[%clk 0:02:42.5]} 7... Bd7 {[%clk 0:02:40]} 8. Nf3 {[%clk 0:02:39.6]}
8... Nxf3 {[%clk 0:02:38.4]} 9. gxf3 {[%clk 0:02:41.5]} 9... b5 {[%clk
0:02:33.8]} 10. Bxb5 {[%clk 0:02:29.7]} 10... Bxb5 {[%clk 0:02:30.6]} 11. Nxb5
{[%clk 0:02:31.6]} 11... Rb8 {[%clk 0:02:28.5]} 12. c4 {[%clk 0:02:28.5]} 12...
a6 {[%clk 0:02:23.5]} 13. Nd4 {[%clk 0:02:28.6]} 13... Qc8 {[%clk 0:02:13.6]}
14. Bh6 {[%clk 0:02:18.3]} 14... Bxh6 {[%clk 0:02:04.2]} 15. Qxh6 {[%clk
0:02:20.2]} 15... Qb7 {[%clk 0:02:03.6]} 16. b3 {[%clk 0:02:18.1]} 16... Qb4
{[%clk 0:02:01.4]} 17. Qd2 {[%clk 0:02:16.5]} 17... Qa3+ {[%clk 0:02:00.5]} 18.
Qb2 {[%clk 0:02:17]} 18... Qc5 {[%clk 0:01:40.7]} 19. h4 {[%clk 0:02:11.1]}
19... a5 {[%clk 0:01:36.7]} 20. h5 {[%clk 0:02:08.1]} 20... a4 {[%clk
0:01:29.5]} 21. hxg6 {[%clk 0:02:07.8]} 21... fxg6 {[%clk 0:01:29.9]} 22. Nc6
{[%clk 0:01:53.8]} 22... Rb6 {[%clk 0:01:22.6]} 23. Rhe1 {[%clk 0:01:48]} 23...
O-O {[%clk 0:00:54.8]} 24. Nxe7+ {[%clk 0:01:42.4]} 24... Kf7 {[%clk 0:00:54.5]}
25. e5 {[%clk 0:01:30.5]} 25... dxe5 {[%clk 0:00:54.2]} 26. Rxe5 {[%clk
0:01:22.5]} 26... axb3 {[%clk 0:00:51.9]} 27. axb3 {[%clk 0:01:20.6]} 27... Ra8
{[%clk 0:00:48.9]} 28. Nc6 {[%clk 0:01:13.9]} 28... Rba6 {[%clk 0:00:41.7]} 29.
Re7+ {[%clk 0:00:54.4]} 29... Qxe7 {[%clk 0:00:36.3]} 30. Nxe7 {[%clk
0:00:53.7]} 30... Ra1+ {[%clk 0:00:37]} 31. Kc2 {[%clk 0:00:53.1]} 31... R1a2
{[%clk 0:00:38.1]} 32. Nc6 {[%clk 0:00:47]} 32... Nd7 {[%clk 0:00:31.2]} 33. Re1
{[%clk 0:00:41.3]} 33... Rxb2+ {[%clk 0:00:31.7]} 34. Kxb2 {[%clk 0:00:43.2]}
34... Re8 {[%clk 0:00:28.2]} 35. Rxe8 {[%clk 0:00:40.4]} 35... Kxe8 {[%clk
0:00:30.1]} 36. Kc2 {[%clk 0:00:28.1]} 36... h5 {[%clk 0:00:28.2]} 37. Kd2
{[%clk 0:00:26.1]} 37... h4 {[%clk 0:00:24.6]} 38. Ke2 {[%clk 0:00:27.2]} 38...
Kf7 {[%clk 0:00:23.5]} 39. f4 {[%clk 0:00:25.1]} 39... Kf6 {[%clk 0:00:21.3]}
40. Kf3 {[%clk 0:00:26.4]} 40... Nb6 {[%clk 0:00:18.3]} 41. Kg4 {[%clk
0:00:23.5]} 41... Nd7 {[%clk 0:00:18]} 42. Kxh4 {[%clk 0:00:23.4]} 42... Nc5
{[%clk 0:00:19.6]} 43. Nd4 {[%clk 0:00:22.4]} 43... Nd3 {[%clk 0:00:19.5]} 44.
Kg3 {[%clk 0:00:21.7]} 44... Ke7 {[%clk 0:00:17.5]} 45. f3 {[%clk 0:00:21.2]}
45... Kd6 {[%clk 0:00:18.2]} 46. Nb5+ {[%clk 0:00:14.8]} 46... Kd7 {[%clk
0:00:18.3]} 47. Kg4 {[%clk 0:00:15.5]} 47... Nc5 {[%clk 0:00:18.6]} 48. Nd4
{[%clk 0:00:15.5]} 48... Nd3 {[%clk 0:00:19.7]} 49. Kg5 {[%clk 0:00:15.8]} 49...
Kd6 {[%clk 0:00:21.1]} 50. Nb5+ {[%clk 0:00:16.5]} 50... Kd7 {[%clk 0:00:21.4]}
51. Kxg6 {[%clk 0:00:16.6]} 51... Nxf4+ {[%clk 0:00:22.4]} 52. Kf5 {[%clk
0:00:18.2]} 52... Ne2 {[%clk 0:00:23.5]} 53. f4 {[%clk 0:00:18.4]} 53... Ng3+
{[%clk 0:00:23.3]} 54. Ke5 {[%clk 0:00:19.2]} 54... Ke7 {[%clk 0:00:22.9]} 55.
Nd4 {[%clk 0:00:19.3]} 55... Nh5 {[%clk 0:00:22.3]} 56. f5 {[%clk 0:00:20.5]}
56... Nf6 {[%clk 0:00:23.3]} 57. Nc6+ {[%clk 0:00:21.7]} 57... Kf7 {[%clk
0:00:23.9]} 58. Nd8+ {[%clk 0:00:21.7]} 58... Ke7 {[%clk 0:00:24.4]} 59. Nc6+
{[%clk 0:00:22.4]} 59... Kf7 {[%clk 0:00:25.3]} 60. b4 {[%clk 0:00:23.9]} 60...
Nd7+ {[%clk 0:00:24.8]} 61. Ke4 {[%clk 0:00:20.5]} 61... Kf6 {[%clk 0:00:25.7]}
62. c5 {[%clk 0:00:20]} 62... Nf8 {[%clk 0:00:20.9]} 63. Ne5 {[%clk 0:00:19.4]}
63... Nh7 {[%clk 0:00:21.3]} 64. d6 {[%clk 0:00:15.9]} 64... cxd6 {[%clk
0:00:23.2]} 65. cxd6 {[%clk 0:00:17.8]} 65... Nf8 {[%clk 0:00:24]} 66. d7 {[%clk
0:00:18.4]} 66... Ke7 {[%clk 0:00:24.4]} 67. Kd5 {[%clk 0:00:16.6]} 67... Kd8
{[%clk 0:00:23.3]} 68. b5 {[%clk 0:00:16.7]} 68... Nxd7 {[%clk 0:00:23.6]} 69.
Nxd7 {[%clk 0:00:17.5]} 69... Kxd7 {[%clk 0:00:25.5]} 70. b6 {[%clk 0:00:19]}
1-0

[Event "*** Titled Tuesday Blitz"]
[Site "Chess.com"]
[Date "2019.06.04"]
[Round "10"]
[White "GHANDEEVAM2003"]
[Black "gena217"]
[Result "1-0"]
[WhiteElo "2946"]
[BlackElo "2895"]
[TimeControl "180+2"]
[EndTime "15:21:57 PDT"]
[Termination "GHANDEEVAM2003 won by resignation"]

1. d4 {[%clk 0:03:01.3]} 1... Nf6 {[%clk 0:02:57.7]} 2. Bg5 {[%clk 0:03:01.1]}
2... Ne4 {[%clk 0:02:56]} 3. Bf4 {[%clk 0:03:01.5]} 3... d5 {[%clk 0:02:55.4]}
4. f3 {[%clk 0:03:00.5]} 4... Nf6 {[%clk 0:02:55.8]} 5. e4 {[%clk 0:03:01.6]}
5... c5 {[%clk 0:02:57.3]} 6. Nc3 {[%clk 0:02:58.2]} 6... cxd4 {[%clk
0:02:57.8]} 7. Qxd4 {[%clk 0:03:00.1]} 7... Nc6 {[%clk 0:02:57.9]} 8. Bb5 {[%clk
0:03:00.8]} 8... Bd7 {[%clk 0:02:59.4]} 9. Bxc6 {[%clk 0:03:02]} 9... Bxc6
{[%clk 0:03:01.3]} 10. e5 {[%clk 0:03:03]} 10... Nd7 {[%clk 0:03:02.6]} 11. e6
{[%clk 0:02:51.3]} 11... fxe6 {[%clk 0:03:04.5]} 12. O-O-O {[%clk 0:02:48.2]}
12... Qb6 {[%clk 0:03:04.6]} 13. Qd2 {[%clk 0:02:43.2]} 13... d4 {[%clk
0:03:05.1]} 14. Ne4 {[%clk 0:02:31.7]} 14... e5 {[%clk 0:03:05.7]} 15. Bg3
{[%clk 0:02:26.2]} 15... g6 {[%clk 0:02:48.8]} 16. Nh3 {[%clk 0:02:20.2]} 16...
Bg7 {[%clk 0:02:46]} 17. Nhf2 {[%clk 0:02:18.3]} 17... Rc8 {[%clk 0:02:32.7]}
18. Kb1 {[%clk 0:02:17.3]} 18... Bd5 {[%clk 0:02:31.6]} 19. h4 {[%clk
0:02:14.4]} 19... h6 {[%clk 0:02:21.1]} 20. Rhe1 {[%clk 0:02:08.4]} 20... a5
{[%clk 0:02:03.6]} 21. Nd3 {[%clk 0:02:02]} 21... a4 {[%clk 0:01:49.9]} 22. a3
{[%clk 0:01:51.5]} 22... Bf7 {[%clk 0:01:44.9]} 23. Nef2 {[%clk 0:01:45.1]}
23... Qe6 {[%clk 0:01:41.7]} 24. Nb4 {[%clk 0:01:44.4]} 24... h5 {[%clk
0:01:31.1]} 25. Nfd3 {[%clk 0:01:34.9]} 25... O-O {[%clk 0:01:08.4]} 26. Qe2
{[%clk 0:01:21.8]} 26... Rc4 {[%clk 0:00:53]} 27. f4 {[%clk 0:01:01.9]} 27...
Rfc8 {[%clk 0:00:34.6]} 28. fxe5 {[%clk 0:00:52.1]} 28... Rxc2 {[%clk
0:00:35.4]} 29. Qf3 {[%clk 0:00:13.2]} 29... Qb3 {[%clk 0:00:24.1]} 30. Rc1
{[%clk 0:00:06.6]} 30... Rxc1+ {[%clk 0:00:21.2]} 31. Rxc1 {[%clk 0:00:08.5]}
31... Rxc1+ {[%clk 0:00:22.7]} 32. Kxc1 {[%clk 0:00:10.4]} 32... Bh6+ {[%clk
0:00:21.3]} 33. Bf4 {[%clk 0:00:10.2]} 33... Bxf4+ {[%clk 0:00:19.5]} 34. Qxf4
{[%clk 0:00:12.1]} 34... Qc4+ {[%clk 0:00:20.6]} 35. Kd2 {[%clk 0:00:13.4]}
35... Nc5 {[%clk 0:00:21]} 36. Nxc5 {[%clk 0:00:10.5]} 36... Qxc5 {[%clk
0:00:22.9]} 37. Qe4 {[%clk 0:00:12]} 37... b5 {[%clk 0:00:22.4]} 38. e6 {[%clk
0:00:12.5]} 38... Be8 {[%clk 0:00:23.7]} 39. Nd3 {[%clk 0:00:13.5]} 39... Qc4
{[%clk 0:00:14.4]} 40. Qe5 {[%clk 0:00:09.7]} 40... Qc6 {[%clk 0:00:12.2]} 41.
Nf4 {[%clk 0:00:08.8]} 41... Qb6 {[%clk 0:00:05.2]} 42. Nd5 {[%clk 0:00:08.2]}
42... Qd8 {[%clk 0:00:06]} 43. Qxd4 {[%clk 0:00:08.9]} 43... Qd6 {[%clk
0:00:04.5]} 44. Nf6+ {[%clk 0:00:09.8]} 44... Kf8 {[%clk 0:00:06]} 45. Nh7+
{[%clk 0:00:04.3]} 45... Kg8 {[%clk 0:00:07]} 46. Nf6+ {[%clk 0:00:05.7]} 46...
Kf8 {[%clk 0:00:08.3]} 47. Qxd6 {[%clk 0:00:04.8]} 47... exd6 {[%clk 0:00:09.3]}
48. Ke3 {[%clk 0:00:03.7]} 48... Bc6 {[%clk 0:00:10.4]} 49. Kf4 {[%clk
0:00:02.5]} 49... Ke7 {[%clk 0:00:09.6]} 50. Kg5 {[%clk 0:00:04.4]} 50... Kxe6
{[%clk 0:00:10.9]} 51. Kxg6 {[%clk 0:00:05.4]} 51... Bxg2 {[%clk 0:00:12.6]} 52.
Nxh5 {[%clk 0:00:06.6]} 52... Ke5 {[%clk 0:00:14.3]} 53. Kg5 {[%clk 0:00:07.4]}
53... d5 {[%clk 0:00:15.3]} 54. Nf4 {[%clk 0:00:07.2]} 54... Be4 {[%clk
0:00:16.5]} 55. h5 {[%clk 0:00:08.5]} 55... d4 {[%clk 0:00:18.1]} 56. Ng6+
{[%clk 0:00:08.8]} 56... Bxg6 {[%clk 0:00:16.2]} 57. hxg6 {[%clk 0:00:10.7]}
57... d3 {[%clk 0:00:17.6]} 58. g7 {[%clk 0:00:12.2]} 58... d2 {[%clk
0:00:19.5]} 59. g8=Q {[%clk 0:00:13.8]} 59... d1=Q {[%clk 0:00:21.4]} 60. Qe8+
{[%clk 0:00:14.8]} 60... Kd4 {[%clk 0:00:22.9]} 61. Qd7+ {[%clk 0:00:15.9]}
61... Kc4 {[%clk 0:00:24.4]} 62. Qxd1 {[%clk 0:00:17.7]} 62... b4 {[%clk
0:00:26.1]} 63. Qxa4 {[%clk 0:00:18.5]} 1-0

[Event "*** Titled Tuesday Blitz"]
[Site "Chess.com"]
[Date "2019.06.04"]
[Round "10"]
[White "bracuarta"]
[Black "Jabberwockiez"]
[Result "1/2-1/2"]
[WhiteElo "2128"]
[BlackElo "2260"]
[TimeControl "180+2"]
[EndTime "15:22:02 PDT"]
[Termination "Game drawn by repetition"]

1. d4 {[%clk 0:03:01.9]} 1... Nf6 {[%clk 0:03:00.7]} 2. c4 {[%clk 0:03:03]} 2...
e6 {[%clk 0:03:01.7]} 3. Nc3 {[%clk 0:03:04]} 3... Bb4 {[%clk 0:03:02.7]} 4. e3
{[%clk 0:03:05.3]} 4... O-O {[%clk 0:03:04]} 5. Ne2 {[%clk 0:03:05.9]} 5... c5
{[%clk 0:03:02.7]} 6. a3 {[%clk 0:03:06.8]} 6... Ba5 {[%clk 0:03:02.1]} 7. Rb1
{[%clk 0:03:06.5]} 7... cxd4 {[%clk 0:02:57.5]} 8. exd4 {[%clk 0:03:06.4]} 8...
d5 {[%clk 0:02:55.2]} 9. c5 {[%clk 0:03:05.3]} 9... Bc7 {[%clk 0:02:46.1]} 10.
Ng3 {[%clk 0:03:05]} 10... b6 {[%clk 0:02:47.1]} 11. b4 {[%clk 0:03:04.6]} 11...
bxc5 {[%clk 0:02:45.1]} 12. bxc5 {[%clk 0:03:05.4]} 12... Ba5 {[%clk 0:02:45.5]}
13. Bd2 {[%clk 0:03:05.5]} 13... Nc6 {[%clk 0:02:46.4]} 14. Qa4 {[%clk
0:03:03.2]} 14... Bd7 {[%clk 0:02:41.4]} 15. Bb5 {[%clk 0:03:03.6]} 15... Qc7
{[%clk 0:02:23.4]} 16. O-O {[%clk 0:02:52.1]} 16... a6 {[%clk 0:02:24.1]} 17.
Bxc6 {[%clk 0:02:52.3]} 17... Bxc6 {[%clk 0:02:26]} 18. Qc2 {[%clk 0:02:52.9]}
18... Rfb8 {[%clk 0:02:21.6]} 19. f4 {[%clk 0:02:47.5]} 19... Bxc3 {[%clk
0:02:04.9]} 20. Qxc3 {[%clk 0:02:44.7]} 20... Bb5 {[%clk 0:02:05.5]} 21. Rfe1
{[%clk 0:02:35.7]} 21... Rb7 {[%clk 0:02:04.7]} 22. f5 {[%clk 0:02:27.3]} 22...
Rab8 {[%clk 0:01:27.1]} 23. fxe6 {[%clk 0:02:25.9]} 23... fxe6 {[%clk 0:01:29]}
24. Rxe6 {[%clk 0:02:19.2]} 24... Bd7 {[%clk 0:01:27]} 25. Rxb7 {[%clk
0:02:17.9]} 25... Qxb7 {[%clk 0:01:28.9]} 26. Re1 {[%clk 0:02:10.1]} 26... Ne4
{[%clk 0:01:22]} 27. Nxe4 {[%clk 0:02:04.7]} 27... dxe4 {[%clk 0:01:23.9]} 28.
Bf4 {[%clk 0:02:00.4]} 28... Re8 {[%clk 0:01:18]} 29. Be5 {[%clk 0:02:00.7]}
29... Bc6 {[%clk 0:01:17.9]} 30. Qg3 {[%clk 0:01:56.1]} 30... Rf8 {[%clk
0:01:09.9]} 31. h3 {[%clk 0:01:56.2]} 31... Rf5 {[%clk 0:01:03.8]} 32. Kh2
{[%clk 0:01:54.6]} 32... h6 {[%clk 0:01:05]} 33. Qg6 {[%clk 0:01:53.5]} 33...
Rg5 {[%clk 0:00:58.6]} 34. Qe6+ {[%clk 0:01:51.3]} 34... Kh7 {[%clk 0:00:51.9]}
35. Re3 {[%clk 0:01:39.3]} 35... Qb2 {[%clk 0:00:40.9]} 36. Rg3 {[%clk 0:01:27]}
36... Rxg3 {[%clk 0:00:33.5]} 37. Bxg3 {[%clk 0:01:21.8]} 37... Qb7 {[%clk
0:00:33.5]} 38. Qf5+ {[%clk 0:01:14.6]} 38... Kg8 {[%clk 0:00:31.9]} 39. Qe5
{[%clk 0:01:11]} 39... Bd5 {[%clk 0:00:29.6]} 40. Bf4 {[%clk 0:00:59.1]} 40...
Kh7 {[%clk 0:00:25]} 41. h4 {[%clk 0:00:54.4]} 41... Qc6 {[%clk 0:00:25.7]} 42.
h5 {[%clk 0:00:54.3]} 42... Kg8 {[%clk 0:00:21.1]} 43. Qb8+ {[%clk 0:00:50.8]}
43... Kh7 {[%clk 0:00:21.9]} 44. Qb6 {[%clk 0:00:48.3]} 44... Qxb6 {[%clk
0:00:22.1]} 45. cxb6 {[%clk 0:00:49.2]} 45... Kg8 {[%clk 0:00:23.6]} 46. Kg3
{[%clk 0:00:48]} 46... Kf7 {[%clk 0:00:25.1]} 47. Be5 {[%clk 0:00:48.4]} 47...
e3 {[%clk 0:00:22.6]} 48. Bf4 {[%clk 0:00:45.2]} 48... e2 {[%clk 0:00:21.1]} 49.
Kf2 {[%clk 0:00:43.4]} 49... g6 {[%clk 0:00:21.2]} 50. hxg6+ {[%clk 0:00:42.1]}
50... Kxg6 {[%clk 0:00:23.1]} 51. g3 {[%clk 0:00:42.2]} 51... Bf3 {[%clk
0:00:22.5]} 52. a4 {[%clk 0:00:40.9]} 52... Kf5 {[%clk 0:00:22.2]} 53. a5 {[%clk
0:00:40.8]} 53... h5 {[%clk 0:00:22.5]} 54. Bc7 {[%clk 0:00:39.9]} 54... Kg4
{[%clk 0:00:23.4]} 55. Bf4 {[%clk 0:00:36.7]} 55... h4 {[%clk 0:00:20.5]} 56.
gxh4 {[%clk 0:00:30.3]} 56... Kxf4 {[%clk 0:00:21.4]} 57. h5 {[%clk 0:00:30.3]}
57... Kg5 {[%clk 0:00:20.9]} 58. d5 {[%clk 0:00:30]} 58... Bxd5 {[%clk
0:00:16.4]} 59. Kxe2 {[%clk 0:00:31.1]} 59... Kxh5 {[%clk 0:00:17.8]} 60. Ke3
{[%clk 0:00:32.4]} 60... Kg6 {[%clk 0:00:15.4]} 61. Kd4 {[%clk 0:00:34.3]} 61...
Bh1 {[%clk 0:00:15.6]} 62. Ke5 {[%clk 0:00:35.1]} 62... Kf7 {[%clk 0:00:16.5]}
63. Kd6 {[%clk 0:00:36.3]} 63... Ke8 {[%clk 0:00:15.4]} 64. Kc7 {[%clk
0:00:37.4]} 64... Ke7 {[%clk 0:00:16.7]} 65. b7 {[%clk 0:00:38.4]} 65... Bxb7
{[%clk 0:00:17.5]} 66. Kxb7 {[%clk 0:00:39.7]} 66... Kd7 {[%clk 0:00:18.9]} 67.
Kxa6 {[%clk 0:00:38.3]} 67... Kc8 {[%clk 0:00:19.1]} 68. Ka7 {[%clk 0:00:38.6]}
68... Kc7 {[%clk 0:00:20.3]} 69. Ka8 {[%clk 0:00:38.6]} 69... Kc8 {[%clk
0:00:21.5]} 70. Ka7 {[%clk 0:00:39.1]} 70... Kc7 {[%clk 0:00:22.6]} 71. Ka8
{[%clk 0:00:37.9]} 71... Kc8 {[%clk 0:00:23.8]} 72. Ka7 {[%clk 0:00:32.9]}
1/2-1/2

[Event "*** Titled Tuesday Blitz"]
[Site "Chess.com"]
[Date "2019.06.04"]
[Round "10"]
[White "pedro_gines"]
[Black "Rish_97"]
[Result "1-0"]
[WhiteElo "2417"]
[BlackElo "2497"]
[TimeControl "180+2"]
[EndTime "15:22:09 PDT"]
[Termination "pedro_gines won by resignation"]

1. d4 {[%clk 0:03:01.9]} 1... Nf6 {[%clk 0:02:59.7]} 2. Nf3 {[%clk 0:03:01.8]}
2... e6 {[%clk 0:03:00.8]} 3. g3 {[%clk 0:03:02.1]} 3... b5 {[%clk 0:03:01.1]}
4. Bg2 {[%clk 0:03:02.8]} 4... Bb7 {[%clk 0:03:02.8]} 5. O-O {[%clk 0:03:04]}
5... Be7 {[%clk 0:03:03.7]} 6. a4 {[%clk 0:03:04.1]} 6... b4 {[%clk 0:03:03.5]}
7. c3 {[%clk 0:03:05.6]} 7... Na6 {[%clk 0:03:02.9]} 8. a5 {[%clk 0:03:05.8]}
8... O-O {[%clk 0:03:01.8]} 9. Bg5 {[%clk 0:03:02.5]} 9... h6 {[%clk 0:02:55.4]}
10. Bxf6 {[%clk 0:03:02]} 10... Bxf6 {[%clk 0:02:57.3]} 11. Nbd2 {[%clk
0:03:03.2]} 11... c5 {[%clk 0:02:56.9]} 12. e4 {[%clk 0:02:42.4]} 12... bxc3
{[%clk 0:02:54]} 13. bxc3 {[%clk 0:02:44.3]} 13... cxd4 {[%clk 0:02:52.7]} 14.
cxd4 {[%clk 0:02:46.2]} 14... d5 {[%clk 0:02:36.5]} 15. e5 {[%clk 0:02:39.5]}
15... Be7 {[%clk 0:02:37.6]} 16. Ne1 {[%clk 0:02:07.1]} 16... Bb4 {[%clk
0:02:28.9]} 17. Nc2 {[%clk 0:02:02.1]} 17... Bxa5 {[%clk 0:02:29.2]} 18. Nb3
{[%clk 0:01:46.8]} 18... Bb6 {[%clk 0:02:28.6]} 19. f4 {[%clk 0:01:46.9]} 19...
Nc7 {[%clk 0:02:27.6]} 20. Ne3 {[%clk 0:01:44.3]} 20... f6 {[%clk 0:02:24.3]}
21. Kh1 {[%clk 0:01:24.3]} 21... fxe5 {[%clk 0:02:20.6]} 22. fxe5 {[%clk
0:01:24.8]} 22... Rxf1+ {[%clk 0:02:20.7]} 23. Qxf1 {[%clk 0:01:23.9]} 23... Qg5
{[%clk 0:02:18.7]} 24. Qd3 {[%clk 0:01:25]} 24... Rf8 {[%clk 0:02:17.2]} 25. Rc1
{[%clk 0:01:12.7]} 25... Rf2 {[%clk 0:02:05]} 26. Kg1 {[%clk 0:01:12]} 26... Rb2
{[%clk 0:02:03.6]} 27. Nc5 {[%clk 0:01:12.5]} 27... Bxc5 {[%clk 0:02:00.3]} 28.
Rxc5 {[%clk 0:01:14.4]} 28... Ba6 {[%clk 0:02:01.6]} 29. Qc3 {[%clk 0:01:03.1]}
29... Rb1+ {[%clk 0:02:02.1]} 30. Kf2 {[%clk 0:01:04.3]} 30... Nb5 {[%clk
0:01:56]} 31. Qd3 {[%clk 0:00:35.7]} 31... Rb2+ {[%clk 0:01:52]} 32. Kg1 {[%clk
0:00:36.8]} 32... Ra2 {[%clk 0:01:24.4]} 33. Nxd5 {[%clk 0:00:16.3]} 33... Ra1+
{[%clk 0:00:57.9]} 34. Kf2 {[%clk 0:00:17]} 34... Ra2+ {[%clk 0:00:52.9]} 35.
Kg1 {[%clk 0:00:17.6]} 35... Rxg2+ {[%clk 0:00:43.7]} 36. Kxg2 {[%clk
0:00:19.5]} 36... Nc7 {[%clk 0:00:33.5]} 37. Qe3 {[%clk 0:00:17.8]} 37... Nxd5
{[%clk 0:00:33]} 38. Qxg5 {[%clk 0:00:17.6]} 38... hxg5 {[%clk 0:00:34.9]} 39.
Ra5 {[%clk 0:00:18.8]} 39... Bd3 {[%clk 0:00:31.1]} 40. Rxa7 {[%clk 0:00:18.6]}
40... g4 {[%clk 0:00:31.7]} 41. h3 {[%clk 0:00:15.4]} 41... Be4+ {[%clk
0:00:31.1]} 42. Kh2 {[%clk 0:00:16.5]} 42... gxh3 {[%clk 0:00:28.9]} 43. Kxh3
{[%clk 0:00:18.4]} 43... Kh7 {[%clk 0:00:30.2]} 44. Ra6 {[%clk 0:00:17.1]} 44...
Bd3 {[%clk 0:00:25.8]} 45. Rd6 {[%clk 0:00:15.9]} 45... Bg6 {[%clk 0:00:21]} 46.
Kh4 {[%clk 0:00:15]} 46... Bf7 {[%clk 0:00:20.9]} 47. Kg5 {[%clk 0:00:13.8]}
47... Nc3 {[%clk 0:00:20.1]} 48. Rd7 {[%clk 0:00:14.4]} 48... Bg6 {[%clk
0:00:20.7]} 49. Re7 {[%clk 0:00:14.5]} 49... Ne4+ {[%clk 0:00:19.9]} 50. Kf4
{[%clk 0:00:15.5]} 50... Nc3 {[%clk 0:00:20.3]} 51. Rxe6 {[%clk 0:00:15.9]}
51... Nd5+ {[%clk 0:00:21.6]} 52. Kg5 {[%clk 0:00:17]} 52... Bd3 {[%clk
0:00:22.2]} 53. Rd6 {[%clk 0:00:17.5]} 53... Nc3 {[%clk 0:00:23.1]} 54. Rd7
{[%clk 0:00:17.4]} 54... Bb5 {[%clk 0:00:23]} 55. Rb7 {[%clk 0:00:16.3]} 55...
Bc6 {[%clk 0:00:24]} 56. Rb6 {[%clk 0:00:16.8]} 56... Bd5 {[%clk 0:00:24.5]} 57.
e6 {[%clk 0:00:15.8]} 57... Ne4+ {[%clk 0:00:21.7]} 58. Kf4 {[%clk 0:00:16.5]}
58... Nf6 {[%clk 0:00:23.6]} 59. Ke5 {[%clk 0:00:16.7]} 59... Kg6 {[%clk
0:00:24.5]} 60. e7 {[%clk 0:00:16.7]} 60... Bf7 {[%clk 0:00:25.1]} 61. d5 {[%clk
0:00:09.6]} 61... Kg5 {[%clk 0:00:19.6]} 62. Rxf6 {[%clk 0:00:04.2]} 62... gxf6+
{[%clk 0:00:20.2]} 63. Kd6 {[%clk 0:00:05.5]} 63... Be8 {[%clk 0:00:20.1]} 64.
Kc7 {[%clk 0:00:06.2]} 64... Kg6 {[%clk 0:00:19.7]} 65. d6 {[%clk 0:00:05.6]}
65... Kf7 {[%clk 0:00:21.4]} 66. d7 {[%clk 0:00:06.8]} 66... Kxe7 {[%clk
0:00:22.9]} 67. d8=Q+ {[%clk 0:00:07.9]} 67... Kf7 {[%clk 0:00:22.9]} 68. Kd6
{[%clk 0:00:09.2]} 68... Bb5 {[%clk 0:00:23.1]} 69. Qc7+ {[%clk 0:00:08.5]} 1-0